[Event "Mistrovství Čech mládeže 2023 - HD16"]
[Site "Harrachov, Czech Republic"]
[Date "2023.10.28"]
[Round "9.2"]
[White "Davídek, Zdeněk"]
[Black "Stein, Michael"]
[Result "1-0"]
[TimeControl "90m + 30s"]
[WhiteElo "2110"]
[BlackElo "1717"]

1. d4 {[%clk 01:30:54]} {[%emt 00:00:05]} d5 {[%clk 01:30:55]} {[%emt
00:00:05]} 2. Nf3 {[%clk 01:31:01]} {[%emt 00:00:23]} c5 {[%clk 01:31:16]}
{[%emt 00:00:10]} 3. c3 {[%clk 01:29:32]} {[%emt 00:01:59]} Nf6 {[%clk
01:31:11]} {[%emt 00:00:35]} 4. Bf4 {[%clk 01:27:15]} {[%emt 00:02:47]} e6
{[%clk 01:28:49]} {[%emt 00:02:53]} 5. e3 {[%clk 01:26:47]} {[%emt 00:00:58]}
Nc6 {[%clk 01:28:32]} {[%emt 00:00:47]} 6. Nbd2 {[%clk 01:27:03]} {[%emt
00:00:13]} Bd6 {[%clk 01:26:39]} {[%emt 00:02:24]} 7. Bg3 {[%clk 01:26:46]}
{[%emt 00:00:46]} O-O {[%clk 01:23:52]} {[%emt 00:03:18]} 8. Bd3 {[%clk
01:26:58]} {[%emt 00:00:18]} c4 {[%clk 01:21:44]} {[%emt 00:02:38]} 9. Bc2
{[%clk 01:25:48]} {[%emt 00:01:40]} Qc7 {[%clk 01:20:14]} {[%emt 00:01:59]} 10.
Qe2 {[%clk 01:24:06]} {[%emt 00:02:14]} e5 {[%clk 01:15:26]} {[%emt 00:05:18]}
11. dxe5 {[%clk 01:23:09]} {[%emt 00:01:27]} Nxe5 {[%clk 01:14:40]} {[%emt
00:01:16]} 12. Nxe5 {[%clk 01:12:10]} {[%emt 00:11:28]} Bxe5 {[%clk 01:14:58]}
{[%emt 00:00:12]} 13. Nf3 {[%clk 01:12:29]} {[%emt 00:00:11]} Bd6 {[%clk
01:14:01]} {[%emt 00:01:26]} 14. Nd4 {[%clk 01:06:34]} {[%emt 00:06:25]} Bd7
{[%clk 01:11:44]} {[%emt 00:02:48]} 15. Bh4 {[%clk 01:02:01]} {[%emt 00:05:03]}
Be5 {[%clk 01:06:02]} {[%emt 00:06:11]} 16. Bxf6 {[%clk 01:01:09]} {[%emt
00:01:22]} Bxf6 {[%clk 01:04:32]} {[%emt 00:02:00]} 17. O-O {[%clk 00:50:15]}
{[%emt 00:11:24]} Bxd4 {[%clk 01:01:18]} {[%emt 00:03:45]} 18. exd4 {[%clk
00:48:43]} {[%emt 00:02:02]} Qd6 {[%clk 01:00:08]} {[%emt 00:01:36]} 19. Qe5
{[%clk 00:34:17]} {[%emt 00:14:59]} Qe6 {[%clk 00:57:10]} {[%emt 00:03:28]} 20.
Rae1 {[%clk 00:31:47]} {[%emt 00:03:00]} h6 {[%clk 00:49:16]} {[%emt 00:08:24]}
21. Re3 {[%clk 00:26:45]} {[%emt 00:05:33]} Rfe8 {[%clk 00:45:19]} {[%emt
00:04:28]} 22. Rfe1 {[%clk 00:18:17]} {[%emt 00:08:58]} Qc6 {[%clk 00:41:48]}
{[%emt 00:04:01]} 23. Qh5 {[%clk 00:18:35]} {[%emt 00:00:11]} Rxe3 {[%clk
00:39:24]} {[%emt 00:02:55]} 24. Rxe3 {[%clk 00:17:53]} {[%emt 00:01:12]} Re8
{[%clk 00:37:23]} {[%emt 00:02:30]} 25. Rxe8+ {[%clk 00:16:48]} {[%emt
00:01:37]} Bxe8 {[%clk 00:37:52]} 26. Qe5 {[%clk 00:16:41]} {[%emt 00:00:36]}
Qe6 {[%clk 00:36:38]} {[%emt 00:01:44]} 27. Bf5 {[%clk 00:14:34]} {[%emt
00:02:37]} Qxe5 {[%clk 00:35:57]} {[%emt 00:01:11]} 28. dxe5 {[%clk 00:15:03]}
{[%emt 00:00:01]} Kf8 {[%clk 00:35:42]} {[%emt 00:00:46]} 29. e6 {[%clk
00:12:02]} {[%emt 00:03:31]} Ke7 {[%clk 00:34:43]} {[%emt 00:01:28]} 30. exf7
{[%clk 00:12:21]} {[%emt 00:00:11]} Bxf7 {[%clk 00:34:52]} {[%emt 00:00:21]} 31.
Kf1 {[%clk 00:11:28]} {[%emt 00:01:23]} Kd6 {[%clk 00:34:18]} {[%emt 00:01:04]}
32. Ke2 {[%clk 00:11:41]} {[%emt 00:00:17]} Ke5 {[%clk 00:33:08]} {[%emt
00:01:40]} 33. Bc8 {[%clk 00:12:07]} {[%emt 00:00:05]} b6 {[%clk 00:33:25]}
{[%emt 00:00:14]} 34. Ke3 {[%clk 00:12:31]} {[%emt 00:00:05]} Bh5 {[%clk
00:31:10]} {[%emt 00:02:43]} 35. f4+ {[%clk 00:12:21]} {[%emt 00:00:41]} Kd6
{[%clk 00:31:21]} {[%emt 00:00:19]} 36. Kd4 {[%clk 00:12:47]} {[%emt 00:00:04]}
Bg6 {[%clk 00:28:20]} {[%emt 00:03:30]} 37. g3 {[%clk 00:12:23]} {[%emt
00:00:56]} Be4 {[%clk 00:23:36]} {[%emt 00:05:13]} 38. Ba6 {[%clk 00:10:19]}
{[%emt 00:02:35]} Bg2 {[%clk 00:22:38]} {[%emt 00:01:28]} 39. Bb7 {[%clk
00:08:20]} {[%emt 00:02:29]} Bf3 {[%clk 00:19:39]} {[%emt 00:03:26]} 40. h4
{[%clk 00:07:47]} {[%emt 00:01:05]} h5 {[%clk 00:18:34]} {[%emt 00:01:35]} 41.
Bc8 {[%clk 00:06:39]} {[%emt 00:01:39]} Bd1 {[%clk 00:17:21]} {[%emt 00:01:40]}
42. Bf5 {[%clk 00:04:06]} {[%emt 00:03:05]} Be2 {[%clk 00:15:20]} {[%emt
00:02:29]} 43. Bg6 {[%clk 00:04:26]} {[%emt 00:00:11]} Bd1 {[%clk 00:15:18]}
{[%emt 00:00:32]} 44. Bf7 {[%clk 00:04:21]} {[%emt 00:00:36]} Bf3 {[%clk
00:15:42]} {[%emt 00:00:06]} 45. Be8 {[%clk 00:02:36]} {[%emt 00:02:15]} Bg4
{[%clk 00:14:56]} {[%emt 00:01:17]} 46. Bb5 {[%emt 00:01:04]} Bd1 {[%clk
00:14:24]} {[%emt 00:01:01]} 47. Ba6 {[%clk 00:02:10]} {[%emt 00:00:23]} Bg4
{[%clk 00:12:44]} {[%emt 00:02:09]} 48. Bb7 {[%clk 00:02:21]} {[%emt 00:00:20]}
Bf3 {[%clk 00:10:56]} {[%emt 00:02:17]} 49. b3 {[%clk 00:02:10]} {[%emt
00:00:41]} cxb3 {[%clk 00:10:48]} {[%emt 00:00:38]} 50. axb3 {[%clk 00:02:39]}
{[%emt 00:00:01]} b5 {[%clk 00:09:36]} {[%emt 00:01:41]} 51. b4 {[%clk
00:02:17]} {[%emt 00:00:54]} Bg2 {[%clk 00:08:58]} {[%emt 00:01:08]} 52. Bc8
{[%clk 00:02:11]} {[%emt 00:00:36]} Bf3 {[%clk 00:06:47]} {[%emt 00:02:41]} 53.
Bh3 {[%clk 00:02:04]} {[%emt 00:00:36]} Be2 {[%clk 00:06:35]} {[%emt 00:00:43]}
54. Bg2 {[%clk 00:02:19]} {[%emt 00:00:15]} Bc4 {[%clk 00:06:34]} {[%emt
00:00:30]} 55. Bf3 {[%clk 00:02:45]} {[%emt 00:00:04]} g6 {[%clk 00:06:52]}
{[%emt 00:00:13]} 56. f5 {[%clk 00:02:52]} {[%emt 00:00:24]} gxf5 {[%clk
00:06:54]} {[%emt 00:00:28]} 57. Bxh5 {[%clk 00:03:21]} Ke6 {[%clk 00:05:51]}
{[%emt 00:01:33]} 58. Bf3 {[%clk 00:03:38]} {[%emt 00:00:13]} Bb3 {[%clk
00:05:06]} {[%emt 00:01:15]} 59. Be2 {[%clk 00:03:10]} {[%emt 00:00:58]} a6
{[%clk 00:04:28]} {[%emt 00:01:08]} 60. Bf3 {[%clk 00:03:33]} {[%emt 00:00:07]}
Ba2 {[%clk 00:03:43]} {[%emt 00:01:15]} 61. h5 {[%clk 00:03:52]} {[%emt
00:00:11]} f4 {[%clk 00:03:16]} {[%emt 00:00:57]} 62. gxf4 {[%clk 00:04:05]}
{[%emt 00:00:17]} Kf5 {[%clk 00:02:59]} {[%emt 00:00:47]} 63. Bxd5 {[%clk
00:04:15]} {[%emt 00:00:19]} Bb1 {[%clk 00:03:10]} {[%emt 00:00:19]} 64. Bf7
{[%clk 00:04:37]} {[%emt 00:00:09]} Kf6 {[%clk 00:02:52]} {[%emt 00:00:48]} 65.
Bg6 {[%clk 00:04:57]} {[%emt 00:00:10]} Ba2 {[%clk 00:03:05]} {[%emt 00:00:18]}
66. Kc5 {[%clk 00:04:52]} {[%emt 00:00:34]} Be6 {[%clk 00:03:08]} {[%emt
00:00:26]} 67. Kb6 {[%clk 00:05:00]} {[%emt 00:00:23]} Bc8 {[%clk 00:03:25]}
{[%emt 00:00:14]} 68. Kc7 {[%clk 00:05:26]} {[%emt 00:00:04]} 1-0

[Event "Mistrovství Čech mládeže 2023 - HD16"]
[Site "Harrachov, Czech Republic"]
[Date "2023.10.28"]
[Round "9.3"]
[White "Hozda, Max"]
[Black "Garabik, Marek"]
[Result "1/2-1/2"]
[TimeControl "90m + 30s"]
[WhiteElo "2105"]
[BlackElo "1697"]

1. d4 {[%clk 01:30:35]} {[%emt 00:00:25]} e6 {[%clk 01:30:34]} {[%emt
00:00:26]} 2. c4 {[%clk 01:30:58]} {[%emt 00:00:06]} Nf6 {[%clk 01:30:04]}
{[%emt 00:01:00]} 3. Nc3 {[%clk 01:31:16]} {[%emt 00:00:12]} d5 {[%clk
01:30:08]} {[%emt 00:00:26]} 4. cxd5 {[%clk 01:31:24]} {[%emt 00:00:22]} Nxd5
{[%clk 01:30:31]} {[%emt 00:00:07]} 5. e4 {[%clk 01:25:11]} {[%emt 00:06:42]}
Nxc3 {[%clk 01:30:53]} {[%emt 00:00:08]} 6. bxc3 {[%clk 01:25:31]} {[%emt
00:00:11]} c5 {[%clk 01:30:51]} {[%emt 00:00:32]} 7. Nf3 {[%clk 01:18:04]}
{[%emt 00:07:57]} cxd4 {[%clk 01:30:29]} {[%emt 00:00:52]} 8. cxd4 {[%clk
01:16:59]} {[%emt 00:01:34]} Bb4+ {[%clk 01:30:51]} {[%emt 00:00:09]} 9. Bd2
{[%clk 01:17:17]} {[%emt 00:00:12]} Bxd2+ {[%clk 01:31:04]} {[%emt 00:00:17]}
10. Qxd2 {[%clk 01:17:27]} {[%emt 00:00:20]} O-O {[%clk 01:31:26]} {[%emt
00:00:08]} 11. Bc4 {[%clk 01:15:31]} {[%emt 00:02:26]} Nd7 {[%clk 01:31:36]}
{[%emt 00:00:21]} 12. O-O {[%clk 01:15:19]} {[%emt 00:00:42]} b6 {[%clk
01:30:40]} {[%emt 00:01:26]} 13. Rad1 {[%clk 01:00:50]} {[%emt 00:14:58]} Bb7
{[%clk 01:30:55]} {[%emt 00:00:16]} 14. Rfe1 {[%clk 00:59:00]} {[%emt
00:02:19]} Rc8 {[%clk 01:31:11]} {[%emt 00:00:15]} 15. Bb3 {[%clk 00:49:58]}
{[%emt 00:09:32]} Re8 {[%clk 01:30:03]} {[%emt 00:01:37]} 16. Qd3 {[%clk
00:38:11]} {[%emt 00:12:17]} h6 {[%clk 01:22:01]} {[%emt 00:08:32]} 17. e5
{[%clk 00:36:16]} {[%emt 00:02:25]} Nf8 {[%clk 01:21:17]} {[%emt 00:01:13]} 18.
Nd2 {[%clk 00:34:30]} {[%emt 00:02:17]} Ng6 {[%clk 01:09:50]} {[%emt 00:11:58]}
19. Ne4 {[%clk 00:30:21]} {[%emt 00:04:39]} Bxe4 {[%clk 01:08:52]} {[%emt
00:01:28]} 20. Qxe4 {[%clk 00:27:19]} {[%emt 00:03:32]} Qd7 {[%clk 01:08:18]}
{[%emt 00:01:04]} 21. f4 {[%clk 00:18:16]} {[%emt 00:09:33]} Ne7 {[%clk
00:59:46]} {[%emt 00:09:01]} 22. d5 {[%clk 00:16:47]} {[%emt 00:01:59]} exd5
{[%clk 00:59:49]} {[%emt 00:00:27]} 23. Bxd5 {[%clk 00:13:58]} {[%emt
00:03:18]} Nxd5 {[%clk 00:59:23]} {[%emt 00:00:57]} 24. Rxd5 {[%clk 00:14:25]}
{[%emt 00:00:03]} Qc6 {[%clk 00:59:09]} {[%emt 00:00:44]} 25. Red1 {[%clk
00:07:08]} {[%emt 00:07:47]} Qc4 {[%clk 00:57:04]} {[%emt 00:02:35]} 26. Qxc4
{[%clk 00:07:03]} {[%emt 00:00:35]} Rxc4 {[%clk 00:57:28]} {[%emt 00:00:07]} 27.
g3 {[%clk 00:06:05]} {[%emt 00:01:28]} Re7 {[%clk 00:49:11]} {[%emt 00:08:46]}
28. Kf2 {[%clk 00:06:21]} {[%emt 00:00:14]} 1/2-1/2

[Event "Mistrovství Čech mládeže 2023 - HD16"]
[Site "Harrachov, Czech Republic"]
[Date "2023.10.28"]
[Round "9.4"]
[White "Dvořák, Jan"]
[Black "Pressler, Tobias"]
[Result "1/2-1/2"]
[TimeControl "90m + 30s"]
[WhiteElo "1789"]
[BlackElo "1965"]

1. e4 {[%clk 01:30:57]} {[%emt 00:00:02]} b6 {[%clk 01:30:52]} {[%emt
00:00:09]} 2. d4 {[%clk 01:31:00]} {[%emt 00:00:27]} Bb7 {[%clk 01:31:18]}
{[%emt 00:00:04]} 3. Nc3 {[%clk 01:31:07]} {[%emt 00:00:23]} e6 {[%clk
01:31:42]} {[%emt 00:00:05]} 4. Bd3 {[%clk 01:30:03]} {[%emt 00:01:33]} Bb4
{[%clk 01:32:07]} {[%emt 00:00:06]} 5. Nge2 {[%clk 01:29:31]} {[%emt 00:01:01]}
Ne7 {[%clk 01:31:25]} {[%emt 00:01:13]} 6. O-O {[%clk 01:26:38]} {[%emt
00:03:23]} d5 {[%clk 01:31:23]} {[%emt 00:00:32]} 7. e5 {[%clk 01:25:55]}
{[%emt 00:01:13]} O-O {[%clk 01:31:33]} {[%emt 00:00:20]} 8. a3 {[%clk
01:24:24]} {[%emt 00:02:01]} Bxc3 {[%clk 01:31:48]} {[%emt 00:00:15]} 9. bxc3
{[%clk 01:24:31]} {[%emt 00:00:23]} c5 {[%clk 01:32:13]} {[%emt 00:00:04]} 10.
Ng3 {[%clk 01:21:39]} {[%emt 00:03:21]} Ba6 {[%clk 01:32:27]} {[%emt 00:00:17]}
1/2-1/2

[Event "Mistrovství Čech mládeže 2023 - HD16"]
[Site "Harrachov, Czech Republic"]
[Date "2023.10.28"]
[Round "9.5"]
[White "Vyšinský, Otakar"]
[Black "Večeř, Martin"]
[Result "1-0"]
[TimeControl "90m + 30s"]
[WhiteElo "1599"]
[BlackElo "1569"]

1. e4 {[%clk 01:30:55]} {[%emt 00:00:05]} d5 {[%clk 01:30:50]} {[%emt
00:00:10]} 2. exd5 {[%clk 01:31:10]} {[%emt 00:00:15]} Nf6 {[%clk 01:31:11]}
{[%emt 00:00:09]} 3. d4 {[%clk 01:31:30]} {[%emt 00:00:10]} Bg4 {[%clk
01:31:17]} {[%emt 00:00:23]} 4. Be2 {[%clk 01:31:10]} {[%emt 00:00:50]} Bxe2
{[%clk 01:31:15]} {[%emt 00:00:32]} 5. Qxe2 {[%clk 01:29:38]} {[%emt 00:02:02]}
Qxd5 {[%clk 01:29:13]} {[%emt 00:02:33]} 6. Nf3 {[%clk 01:29:14]} {[%emt
00:00:53]} e6 {[%clk 01:25:05]} {[%emt 00:04:38]} 7. O-O {[%clk 01:27:00]}
{[%emt 00:02:44]} Nc6 {[%clk 01:24:22]} {[%emt 00:01:13]} 8. Be3 {[%clk
01:21:17]} {[%emt 00:06:12]} Bd6 {[%clk 01:17:48]} {[%emt 00:07:04]} 9. c4
{[%clk 01:14:41]} {[%emt 00:07:06]} Qh5 {[%clk 01:16:12]} {[%emt 00:02:05]} 10.
Nc3 {[%clk 01:13:32]} {[%emt 00:01:41]} a6 {[%clk 01:14:14]} {[%emt 00:02:28]}
11. d5 {[%clk 01:02:10]} {[%emt 00:11:51]} Ne5 {[%clk 01:07:38]} {[%emt
00:07:06]} 12. Nxe5 {[%clk 01:01:45]} {[%emt 00:00:56]} Qxe2 {[%clk 01:06:17]}
{[%emt 00:01:50]} 13. Nxe2 {[%clk 01:02:13]} {[%emt 00:00:01]} Bxe5 {[%clk
01:06:35]} {[%emt 00:00:12]} 14. dxe6 {[%clk 01:02:19]} {[%emt 00:00:25]} fxe6
{[%clk 01:06:45]} {[%emt 00:00:20]} 15. Nf4 {[%clk 00:59:24]} {[%emt 00:03:25]}
Kf7 {[%clk 01:06:36]} {[%emt 00:00:39]} 16. Nd3 {[%clk 00:58:29]} {[%emt
00:01:25]} Nd7 {[%clk 01:05:05]} {[%emt 00:02:01]} 17. Nxe5+ {[%clk 00:51:58]}
{[%emt 00:07:01]} Nxe5 {[%clk 01:05:27]} {[%emt 00:00:08]} 18. Bf4 {[%clk
00:50:41]} {[%emt 00:01:47]} Nxc4 {[%clk 01:03:58]} {[%emt 00:01:59]} 19. Rac1
{[%clk 00:49:00]} {[%emt 00:02:11]} Nxb2 {[%clk 01:03:40]} {[%emt 00:00:48]} 20.
Rxc7+ {[%clk 00:48:56]} {[%emt 00:00:34]} Kf6 {[%clk 01:03:56]} {[%emt
00:00:14]} 21. Rxb7 {[%clk 00:48:16]} {[%emt 00:01:11]} Nd3 {[%clk 01:03:52]}
{[%emt 00:00:33]} 22. Bg3 {[%clk 00:45:03]} {[%emt 00:03:43]} Rhc8 {[%clk
01:03:28]} {[%emt 00:00:54]} 23. h3 {[%clk 00:42:04]} {[%emt 00:03:29]} Rc2
{[%clk 01:02:35]} {[%emt 00:01:23]} 24. Rd1 {[%clk 00:40:57]} {[%emt 00:01:37]}
Rc1 {[%clk 00:59:46]} {[%emt 00:03:20]} 25. Rxc1 {[%clk 00:38:52]} {[%emt
00:02:35]} Nxc1 {[%clk 01:00:10]} {[%emt 00:00:06]} 26. a4 {[%clk 00:34:27]}
{[%emt 00:04:56]} Ne2+ {[%clk 00:57:27]} {[%emt 00:03:12]} 27. Kh2 {[%clk
00:34:50]} {[%emt 00:00:07]} Nc3 {[%clk 00:55:40]} {[%emt 00:02:18]} 28. a5
{[%clk 00:30:00]} {[%emt 00:05:21]} Ne4 {[%clk 00:54:31]} {[%emt 00:01:38]} 29.
f3 {[%clk 00:29:00]} {[%emt 00:01:30]} Nd2 {[%clk 00:53:13]} {[%emt 00:01:47]}
30. Be1 {[%clk 00:27:49]} {[%emt 00:01:42]} Nc4 {[%clk 00:51:30]} {[%emt
00:02:13]} 31. Bc3+ {[%clk 00:26:54]} {[%emt 00:01:25]} e5 {[%clk 00:51:43]}
{[%emt 00:00:17]} 32. f4 {[%clk 00:25:47]} {[%emt 00:01:38]} Re8 {[%clk
00:38:40]} {[%emt 00:13:33]} 33. Rc7 {[%clk 00:24:39]} {[%emt 00:01:38]} Ne3
{[%clk 00:37:31]} {[%emt 00:01:38]} 34. Bxe5+ {[%clk 00:23:44]} {[%emt
00:01:26]} 1-0

[Event "Mistrovství Čech mládeže 2023 - HD16"]
[Site "Harrachov, Czech Republic"]
[Date "2023.10.28"]
[Round "9.6"]
[White "Svoboda, Daniel"]
[Black "Hrbek, Jáchym"]
[Result "0-1"]
[TimeControl "90m + 30s"]
[WhiteElo "1766"]
[BlackElo "1973"]

1. c4 {[%clk 01:30:56]} {[%emt 00:00:04]} g6 {[%clk 01:30:16]} {[%emt
00:00:44]} 2. Nc3 {[%clk 01:30:00]} {[%emt 00:01:26]} Bg7 {[%clk 01:30:38]}
{[%emt 00:00:09]} 3. d4 {[%clk 01:29:47]} {[%emt 00:00:43]} c5 {[%clk
01:31:00]} {[%emt 00:00:07]} 4. e3 {[%clk 01:22:31]} {[%emt 00:07:46]} cxd4
{[%clk 01:30:37]} {[%emt 00:00:53]} 5. exd4 {[%clk 01:22:53]} {[%emt 00:00:08]}
Nf6 {[%clk 01:30:27]} {[%emt 00:00:39]} 6. Nf3 {[%clk 01:21:56]} {[%emt
00:01:28]} O-O {[%clk 01:30:32]} {[%emt 00:00:24]} 7. Bd3 {[%clk 01:20:36]}
{[%emt 00:01:51]} d5 {[%clk 01:30:40]} {[%emt 00:00:21]} 8. cxd5 {[%clk
01:12:43]} {[%emt 00:08:24]} Nxd5 {[%clk 01:29:51]} {[%emt 00:01:19]} 9. O-O
{[%clk 01:11:56]} {[%emt 00:01:16]} Nc6 {[%clk 01:14:28]} {[%emt 00:15:53]} 10.
Bb1 {[%clk 00:57:35]} {[%emt 00:14:51]} Bg4 {[%clk 01:11:44]} {[%emt 00:03:11]}
11. h3 {[%clk 00:54:50]} {[%emt 00:03:18]} Bxf3 {[%clk 01:11:43]} {[%emt
00:00:31]} 12. Qxf3 {[%clk 00:55:13]} {[%emt 00:00:08]} e6 {[%clk 00:53:23]}
{[%emt 00:18:49]} 13. Be3 {[%clk 00:32:05]} {[%emt 00:23:38]} Bxd4 {[%clk
00:48:58]} {[%emt 00:04:55]} 14. Be4 {[%clk 00:19:25]} {[%emt 00:13:10]} Nxe3
{[%clk 00:44:24]} {[%emt 00:05:05]} 15. fxe3 {[%clk 00:18:59]} {[%emt
00:00:56]} Bg7 {[%clk 00:44:31]} {[%emt 00:00:22]} 16. Bxc6 {[%clk 00:17:11]}
{[%emt 00:02:18]} bxc6 {[%clk 00:44:53]} {[%emt 00:00:09]} 17. Qxc6 {[%clk
00:14:49]} {[%emt 00:02:51]} Qd2 {[%clk 00:44:19]} {[%emt 00:01:01]} 18. Qf3
{[%clk 00:07:06]} {[%emt 00:08:16]} Qxb2 {[%clk 00:40:54]} {[%emt 00:03:55]} 19.
Ne4 {[%clk 00:07:11]} {[%emt 00:00:26]} Qxa1 {[%clk 00:40:07]} {[%emt
00:01:17]} 20. Rxa1 {[%clk 00:07:38]} {[%emt 00:00:04]} Bxa1 {[%clk 00:40:31]}
{[%emt 00:00:06]} 21. Nf6+ {[%clk 00:07:39]} {[%emt 00:00:29]} Bxf6 {[%clk
00:39:08]} {[%emt 00:01:53]} 22. Qxf6 {[%clk 00:08:04]} {[%emt 00:00:05]} Rfd8
{[%clk 00:38:57]} {[%emt 00:00:40]} 23. Kh2 {[%clk 00:06:30]} {[%emt 00:02:06]}
a5 {[%clk 00:35:13]} {[%emt 00:04:13]} 24. Kg3 {[%clk 00:04:27]} {[%emt
00:02:33]} a4 {[%clk 00:32:20]} {[%emt 00:03:24]} 25. Kg4 {[%clk 00:02:04]}
{[%emt 00:02:53]} Rd2 {[%emt 00:01:33]} 0-1

[Event "Mistrovství Čech mládeže 2023 - HD16"]
[Site "Harrachov, Czech Republic"]
[Date "2023.10.28"]
[Round "9.7"]
[White "Bohatyrov, Mykola"]
[Black "Veverka, Vladimír"]
[Result "0-1"]
[TimeControl "90m + 30s"]
[WhiteElo "1725"]
[BlackElo "1849"]

1. d4 {[%clk 01:30:59]} Nf6 {[%clk 01:30:53]} {[%emt 00:00:07]} 2. c4 {[%clk
01:31:24]} {[%emt 00:00:05]} e6 {[%clk 01:31:16]} {[%emt 00:00:07]} 3. Nf3
{[%clk 01:31:43]} {[%emt 00:00:11]} b6 {[%clk 01:31:28]} {[%emt 00:00:17]} 4.
g3 {[%clk 01:32:11]} {[%emt 00:00:02]} Ba6 {[%clk 01:31:50]} {[%emt 00:00:09]}
5. Qc2 {[%clk 01:31:19]} {[%emt 00:01:22]} c5 {[%clk 01:29:00]} {[%emt
00:03:19]} 6. d5 {[%clk 01:30:09]} {[%emt 00:01:40]} exd5 {[%clk 01:28:15]}
{[%emt 00:01:15]} 7. cxd5 {[%clk 01:30:34]} {[%emt 00:00:05]} Bb7 {[%clk
01:28:30]} {[%emt 00:00:15]} 8. Bg2 {[%clk 01:27:15]} {[%emt 00:03:49]} Nxd5
{[%clk 01:27:20]} {[%emt 00:01:40]} 9. O-O {[%clk 01:26:06]} {[%emt 00:01:40]}
Nc6 {[%clk 01:19:17]} {[%emt 00:08:33]} 10. a3 {[%emt 00:00:42]} Nf6 {[%clk
01:14:29]} {[%emt 00:05:17]} 11. e4 {[%clk 01:25:09]} {[%emt 00:01:17]} d6
{[%clk 01:12:15]} {[%emt 00:02:44]} 12. Nc3 {[%clk 01:23:58]} {[%emt 00:01:41]}
a6 {[%clk 01:10:00]} {[%emt 00:02:45]} 13. Bg5 {[%clk 01:22:54]} {[%emt
00:01:34]} Be7 {[%clk 01:09:30]} {[%emt 00:01:00]} 14. Rad1 {[%clk 01:22:32]}
{[%emt 00:00:52]} Qc7 {[%clk 01:08:12]} {[%emt 00:01:48]} 15. Nd5 {[%clk
01:16:54]} {[%emt 00:06:07]} Nxd5 {[%clk 01:06:48]} {[%emt 00:01:56]} 16. exd5
{[%clk 01:17:13]} {[%emt 00:00:10]} Bxg5 {[%clk 01:04:38]} {[%emt 00:02:40]} 17.
Nxg5 {[%clk 01:16:57]} {[%emt 00:00:46]} Ne7 {[%clk 01:03:53]} {[%emt
00:01:16]} 18. Rfe1 {[%clk 01:13:29]} {[%emt 00:03:57]} h6 {[%clk 01:02:55]}
{[%emt 00:01:28]} 19. Nh3 {[%clk 01:12:47]} {[%emt 00:01:12]} O-O-O {[%clk
00:58:00]} {[%emt 00:05:25]} 20. b4 {[%clk 01:11:32]} {[%emt 00:01:45]} Kb8
{[%clk 00:48:51]} {[%emt 00:09:40]} 21. Nf4 {[%clk 01:05:03]} {[%emt 00:06:58]}
g5 {[%clk 00:48:15]} {[%emt 00:01:05]} 22. Nh5 {[%clk 01:05:04]} {[%emt
00:00:30]} Bc8 {[%clk 00:46:29]} {[%emt 00:02:17]} 23. Qb2 {[%clk 01:04:49]}
{[%emt 00:00:44]} Bg4 {[%clk 00:44:37]} {[%emt 00:02:21]} 24. Nf6 {[%clk
01:04:15]} {[%emt 00:01:04]} Bxd1 {[%clk 00:44:07]} {[%emt 00:01:00]} 25. Rxd1
{[%clk 01:04:42]} {[%emt 00:00:04]} cxb4 {[%clk 00:41:46]} {[%emt 00:02:52]} 26.
Qxb4 {[%clk 01:04:08]} {[%emt 00:01:04]} Ng8 {[%clk 00:32:27]} {[%emt
00:09:48]} 27. Ne4 {[%clk 01:03:55]} {[%emt 00:00:43]} f5 {[%clk 00:32:27]}
{[%emt 00:00:31]} 28. Nd2 {[%clk 01:03:01]} {[%emt 00:01:23]} Ka7 {[%clk
00:29:36]} {[%emt 00:03:22]} 29. Nf3 {[%clk 01:02:29]} {[%emt 00:01:01]} Ne7
{[%clk 00:27:44]} {[%emt 00:02:22]} 30. Nd4 {[%clk 01:02:21]} {[%emt 00:00:37]}
Qc5 {[%clk 00:26:26]} {[%emt 00:01:49]} 31. Qe1 {[%clk 01:01:11]} {[%emt
00:01:40]} Rd7 {[%clk 00:23:57]} {[%emt 00:02:59]} 32. Qe6 {[%clk 01:01:14]}
{[%emt 00:00:26]} Rhd8 {[%clk 00:22:45]} {[%emt 00:01:33]} 33. h3 {[%clk
00:56:03]} {[%emt 00:05:51]} Qxa3 {[%clk 00:20:37]} {[%emt 00:02:38]} 34. Re1
{[%clk 00:51:40]} {[%emt 00:04:54]} Qc3 {[%clk 00:19:30]} {[%emt 00:01:37]} 35.
Qxe7 {[%clk 00:50:19]} {[%emt 00:01:51]} Qxd4 {[%clk 00:19:38]} {[%emt
00:00:22]} 36. Qe2 {[%clk 00:50:21]} {[%emt 00:00:28]} Rc7 {[%clk 00:18:33]}
{[%emt 00:01:36]} 37. Bf1 {[%clk 00:50:11]} {[%emt 00:00:39]} b5 {[%clk
00:18:30]} {[%emt 00:00:33]} 38. Qa2 {[%clk 00:50:20]} {[%emt 00:00:21]} Qb6
{[%clk 00:18:54]} {[%emt 00:00:06]} 39. Rb1 {[%clk 00:50:03]} {[%emt 00:00:46]}
Rc5 {[%clk 00:19:06]} {[%emt 00:00:18]} 40. Re1 {[%clk 00:49:54]} {[%emt
00:00:39]} Rdc8 {[%clk 00:19:18]} {[%emt 00:00:18]} 41. Re2 {[%clk 00:48:03]}
{[%emt 00:02:21]} Qc7 {[%clk 00:17:18]} {[%emt 00:02:29]} 42. Re6 {[%clk
00:47:25]} {[%emt 00:01:07]} Rc2 {[%clk 00:16:37]} {[%emt 00:01:13]} 43. Qa3
{[%clk 00:47:02]} {[%emt 00:00:53]} Qb6 {[%clk 00:16:46]} {[%emt 00:00:21]} 44.
Be2 {[%clk 00:46:28]} {[%emt 00:01:03]} b4 {[%clk 00:16:27]} {[%emt 00:00:49]}
0-1